Cogmind - Beta 11 X9 @@@ ROGUE MODE // 2022.01.01 @ 22:37:08 // AFD2020/Player2 Player: cptwinky Result: Core destroyed Performance ------------- Evolutions (3) 1500 Regions Visited (10) 2000 Robots Destroyed (128) 640 Value Destroyed (4400) 4400 Prototype IDs (38) 760 Alien Tech Used (0) 0 Bonus (5729) 5729 TOTAL SCORE: 15029 Bonus ------- High Alert Combat Kills 1419 Follower Combat Kills 3014 Entered Garrisons 400 Used RIF Installer 1000 Aligned with FarCom 300 Friendly Fire -404 Cogmind --------- Core Integrity 0/700 Matter 273/300 Energy 280/280 System Corruption 10% Temperature Cool (6) Movement Treading (158) Location -7/Factory Parts ------- > --- POWER (1) -------- Heavy Ion Engine > --- PROPULSION (4) --- Armored Treads Advanced Treads Improved Heavy Treads > --- UTILITY (5) ------ High-capacity Storage Unit Advanced Targeting Computer Matter Filter Hardened Heavy Armor Plating > --- WEAPON (3) ------- Enhanced Autogun Enhanced Autogun Precision Rocket Launcher > --- INVENTORY (20) --- F-cell Engine F-cell Engine Light Treads Enhanced Armored Leg Enhanced Armored Leg Enhanced Armored Leg Advanced Myomer Leg Advanced Myomer Leg Compact Wheel High-capacity Matter Pod (39) Relay Coupler [NC] (23) Relay Coupler [NC] (21) Relay Coupler [Swarmer] (41) Relay Coupler [Grunt] (28) Trap Reconfigurator Ion Burst Cannon Flak Gun Mini Grenade Launcher Datajack Power Maul Peak State ------------ > --- POWER ------------ Heavy Ion Engine > --- PROPULSION ------- Light Treads Advanced Treads Improved Heavy Treads > --- UTILITY ---------- High-capacity Storage Unit Advanced Targeting Computer Hardened Medium Armor Plating Improved Light Armor Plating Improved Thermal Defense Suite > --- WEAPON ----------- Ion Burst Cannon Enhanced Autogun Precision Rocket Launcher > --- INVENTORY -------- F-cell Engine F-cell Engine Enhanced Armored Leg Enhanced Armored Leg Enhanced Armored Leg Advanced Myomer Leg Advanced Myomer Leg Compact Wheel High-capacity Matter Pod Matter Filter Relay Coupler [NC] Relay Coupler [NC] Relay Coupler [Swarmer] Relay Coupler [Grunt] Trap Reconfigurator Enhanced Autogun Flak Gun Mini Grenade Launcher Datajack Power Maul [Rating: 62] Favorites ----------- Power Heavy Ion Engine Engine Heavy Ion Engine Propulsion Light Treads Treads Light Treads Leg Aluminum Leg Wheel Compact Wheel Utility Large Storage Unit Device Matter Filter Storage Large Storage Unit Processor Advanced Targeting Computer Hackware System Shield Protection Hardened Medium Armor Plating Weapon Light Cannon Energy Gun Medium Laser Energy Cannon Advanced Beam Cannon Ballistic Gun High-powered Shotgun Ballistic Cannon Light Cannon Launcher Mini Grenade Launcher Slashing Weapon Mining Claw Special Melee Weapon Datajack Build | -11 -10 -10 -10 -9 -8 -8 -8 -8 -8 -7 ------- Run | Scr Mat Min Exi Min Mat Gar Mat Sto Gar Fac Slots Evolved 6 | . . . . . 4 . . . . 2 Power . | . . . . . . . . . . . Propulsion 2 | . . . . . 1 . . . . 1 Utility 3 | . . . . . 2 . . . . 1 Weapon 1 | . . . . . 1 . . . . . Parts Attached 111 | 1 8 1 1 . 33 7 9 18 4 29 Power 6 | . 2 . . . 2 . . . . 2 Engine 6 | . 2 . . . 2 . . . . 2 Core . | . . . . . . . . . . . Reactor . | . . . . . . . . . . . Propulsion 28 | . 2 . . . 9 3 . 5 . 9 Treads 25 | . 2 . . . 8 3 . 5 . 7 Leg 2 | . . . . . . . . . . 2 Wheel 1 | . . . . . 1 . . . . . Hover . | . . . . . . . . . . . Flight . | . . . . . . . . . . . Utility 30 | . 3 . 1 . 12 1 4 2 . 7 Device 9 | . . . . . 3 . 3 1 . 2 Storage 3 | . 2 . . . . . . . . 1 Processor 1 | . . . . . 1 . . . . . Hackware 3 | . . . . . 2 . . . . 1 Protection 14 | . 1 . 1 . 6 1 1 1 . 3 Artifact . | . . . . . . . . . . . Weapon 47 | 1 1 1 . . 10 3 5 11 4 11 Energy Gun . | . . . . . . . . . . . Energy Cannon 2 | . . . . . . . . 1 . 1 Ballistic Gun 27 | 1 . . . . 6 2 4 7 2 5 Ballistic Cannon 3 | . 1 1 . . . 1 . . . . Launcher 10 | . . . . . 2 . . 2 2 4 Special Weapon . | . . . . . . . . . . . Impact Weapon . | . . . . . . . . . . . Slashing Weapon 4 | . . . . . 2 . 1 1 . . Piercing Weapon . | . . . . . . . . . . . Special Melee Weapon 1 | . . . . . . . . . . 1 Unidentified Prototypes 9 | . . . . . 2 . . 3 . 4 Parts Lost 8 | . . . . . 2 . . . . 6 Power 1 | . . . . . . . . . . 1 Propulsion 2 | . . . . . 1 . . . . 1 Utility 4 | . . . . . 1 . . . . 3 Weapon 1 | . . . . . . . . . . 1 Highest Loss Streak 3 | . . . . . 1 . . . . 3 Average Slot Usage (%) 98 | . 98 100 100 100 99 100 100 100 100 96 Engine 9 | . 14 14 14 14 9 9 9 9 9 6 Treads 25 | . 15 28 28 28 26 27 27 27 27 28 Leg 1 | . 12 . . . . . . . . . Storage 9 | . 14 14 14 14 9 9 9 9 9 7 Processor 4 | . . . . . 3 9 9 9 9 7 Hackware 6 | . . . . . 9 9 9 9 9 7 Protection 11 | . 12 14 14 14 14 9 8 9 9 11 Ballistic Gun 17 | . 14 3 . . 15 18 23 26 25 21 Ballistic Cannon 8 | . 9 25 28 28 11 9 3 . . . Naked Turns . | . . . . . . . . . . . Heaviest Build 81 | 12 33 34 34 34 45 45 45 46 45 81 Greatest Support 117 | 20 40 40 40 40 60 60 60 60 60 117 Greatest Overweight (x) 12 | . 1 . . . 2 . 12 . . 1 Average Overweight (x) . | . . . . . . . . . . . Largest Inventory Capacity 20 | 8 15 15 15 15 15 15 15 15 15 20 Average Capacity 15 | 8 11 15 15 15 15 15 15 15 15 19 Most Carried 20 | 6 15 15 15 15 15 15 15 15 15 20 Average Carried 14 | 6 8 14 14 15 14 14 14 14 15 15 Final Capacity 20 | 8 15 15 15 15 15 15 15 15 15 20 Final Carried 20 | 6 15 15 15 15 15 15 15 15 15 20 Class Distribution -------------------- 32% | Bothacker-Skirmisher 32% | Mutant 15% | Tank 8% | Bothacker-Tank 7% | Skirmisher 3% | Bothacker-Mutant Dominant Class ---------------- Mutant | -10/Materials Mutant | -10/Mines Mutant | -10/Exiles Mutant | -9/Mines Tank | -8/Materials Skirmisher | -8/Garrison Bothacker-Skirmisher | -8/Materials Bothacker-Skirmisher | -8/Storage Bothacker-Skirmisher | -8/Garrison Bothacker-Tank | -7/Factory Resources | -11 -10 -10 -10 -9 -8 -8 -8 -8 -8 -7 ----------- Run | Scr Mat Min Exi Min Mat Gar Mat Sto Gar Fac Matter Collected 3510 | 210 156 19 . . 997 317 185 616 192 818 Remotely . | . . . . . . . . . . . Salvage Created 4295 | . 334 . . . 990 217 190 997 271 1296 Parts 238 | . 23 . . . 53 13 9 48 18 74 Haulers Intercepted 10 | . 1 . . . 5 . . 3 . 1 Recyclers Shooed 5 | . . . . . 2 . 1 . . 2 Parts Field Recycled . | . . . . . . . . . . . Retrieved Matter . | . . . . . . . . . . . Parts Self-Destructed . | . . . . . . . . . . . Prevented . | . . . . . . . . . . . Kills | -11 -10 -10 -10 -9 -8 -8 -8 -8 -8 -7 ------- Run | Scr Mat Min Exi Min Mat Gar Mat Sto Gar Fac Combat Hostiles Destroyed 95 | . 12 . . . 17 5 4 18 13 26 Guns 57 | . 8 . . . 7 5 4 14 4 15 Cannons 7 | . 4 . . . 3 . . . . . AOE 30 | . . . . . 7 . . 4 9 10 Classes Destroyed 15 | . 3 . . . 5 . . 3 . 4 Worker 9 | . . . . . . . . 5 . 4 Builder 1 | . . . . . 1 . . . . . Hauler 10 | . 1 . . . 5 . . 3 . 1 Recycler 7 | . . . . . 1 . . 1 . 5 Mechanic 3 | . . . . . . . . . . 3 Watcher 3 | . . . . . 1 . . 1 . 1 Swarmer 22 | . 6 . . . 2 . . 4 6 4 Grunt 45 | . 6 . . . 12 5 2 4 7 9 Brawler 5 | . . . . . . . . 1 . 4 Duelist 3 | . . . . . 1 . . 1 . 1 Protector 1 | . . . . . . . . . . 1 Sentry 11 | . . . . . 2 . 2 7 . . Hunter 4 | . . . . . . . . 1 . 3 Programmer 3 | . . . . . . . . . . 3 Heavy 1 | . . . . . . . . . . 1 Best Kill Streak 13 | . 5 . . . 8 2 1 4 9 13 Combat Bots Only 9 | . 5 . . . 6 2 1 4 9 7 Max Kills in Single Turn 5 | . 1 . . . 3 1 1 2 2 5 Gunslinging 1 | . . . . . . . . 1 . 1 Exploded 3 | . . . . . 3 . . 2 2 2 Melee . | . . . . . . . . . . . Uniques/NPCs Destroyed . | . . . . . . . . . . . Combat | -11 -10 -10 -10 -9 -8 -8 -8 -8 -8 -7 -------- Run | Scr Mat Min Exi Min Mat Gar Mat Sto Gar Fac Damage Taken 3912 | . 374 . . . 893 401 132 598 228 1286 Core 389 | . 29 . . . 71 35 47 37 39 131 Absorbed by Shields . | . . . . . . . . . . . Core Remaining (%) 72 | 100 . . . 78 . . . . 38 . Volleys Fired 204 | . 29 . . . 52 13 10 37 16 47 Largest 3 | . 2 . . . 3 3 3 3 3 3 Hottest 93 | . 70 . . . 93 81 78 75 75 78 Shots Fired 491 | . 58 . . . 128 37 30 99 28 111 Gun 382 | . 42 . . . 78 24 25 97 20 96 Cannon 80 | . 16 . . . 46 13 5 . . . Launcher 29 | . . . . . 4 . . 2 8 15 Special . | . . . . . . . . . . . Kinetic 449 | . 45 . . . 124 37 30 97 20 96 Thermal 13 | . 13 . . . . . . . . . Explosive 29 | . . . . . 4 . . 2 8 15 Electromagnetic . | . . . . . . . . . . . Robot Hit Streak 24 | . 5 . . . 12 6 8 9 8 24 Robot Miss Streak 9 | . 3 . . . 9 2 2 6 3 4 Penetration Max . | . . . . . . . . . . . Secondary Targets 8 | . . . . . . . . 1 2 5 Max Gunslinging Chain 1 | . . . . . . . . 1 1 1 Shots Hit Robots 335 | . 35 . . . 81 26 24 67 15 87 Core Hits 256 | . 17 . . . 47 12 8 45 21 106 Critical Kills 3 | . . . . . 1 1 . 1 . . Critical Parts Destroyed 2 | . . . . . 1 . . 1 . . Critical Strikes 11 | . 1 . . . 6 2 . 2 . . Destroy 5 | . . . . . 2 1 . 2 . . Blast 6 | . 1 . . . 4 1 . . . . Melee Attacks 21 | . . . . . 13 . 4 3 . 1 Impact . | . . . . . . . . . . . Slashing 20 | . . . . . 13 . 4 3 . . Piercing . | . . . . . . . . . . . Sneak Attacks 1 | . . . . . . . . . . 1 Combat Hostiles . | . . . . . . . . . . . Follow-up Attacks . | . . . . . . . . . . . Damage Inflicted 10659 | . 562 . . 5 1800 482 463 1553 1129 4665 Guns 4954 | . 371 . . . 826 327 419 1281 230 1500 Cannons 794 | . 159 . . . 436 155 44 . . . Explosions 4785 | . . . . . 501 . . 252 899 3133 Melee . | . . . . . . . . . . . Ramming 126 | . 32 . . 5 37 . . 20 . 32 Kinetic 5648 | . 430 . . . 1262 482 463 1281 230 1500 Thermal 860 | . 100 . . . . . . . . 760 Explosive 4010 | . . . . . 501 . . 252 899 2358 Electromagnetic 15 | . . . . . . . . . . 15 Impact . | . . . . . . . . . . . Slashing . | . . . . . . . . . . . Piercing . | . . . . . . . . . . . Highest Corruption 10 | . . . . . 5 5 5 5 5 10 Average Corruption 4 | . . . . . 2 5 5 5 5 6 Corruption Purged . | . . . . . . . . . . . Effects 102 | . . . . . 15 9 9 30 8 31 Message Errors 30 | . . . . . 4 2 5 8 4 7 Matter Fused 21 | . . . . . 3 2 1 5 1 9 Heat Flow Errors 12 | . . . . . . 1 . 7 . 4 Energy Discharges 9 | . . . . . 4 1 . 2 . 2 Parts Rejected 2 | . . . . . . 2 . . . . Data Loss (minor) 12 | . . . . . 3 . . 3 3 3 Data Loss (major) 6 | . . . . . 1 1 1 2 . 1 Misfires 6 | . . . . . . . 1 2 . 3 Weapon Failures 4 | . . . . . . . 1 1 . 2 Overload Shots . | . . . . . . . . . . . Overflow Damage 179 | . . . . . . 14 . 35 87 43 Projectiles 14 | . . . . . . 14 . . . . Explosions 165 | . . . . . . . . 35 87 43 Melee . | . . . . . . . . . . . Knockbacks 11 | . 1 . . . 7 2 . . . 1 Impact 1 | . . . . . . . . . . 1 Kinetic 9 | . 1 . . . 7 1 . . . . Secondary 1 | . . . . . . 1 . . . . Self-Inflicted Damage 110 | . . . . . . . . 54 7 49 Shots 4 | . . . . . . . . 2 1 1 Rammed 14 | . 4 . . 1 4 . . 2 . 3 Targets Rammed 17 | . 4 . . 1 4 . . 4 . 4 Kicked . | . . . . . . . . . . . Crushed 3 | . . . . . . . . 2 . 1 Highest Temperature 307 | . 108 . . . 91 125 36 257 77 307 Average Temperature 49 | . 25 . . . 27 35 14 63 27 81 Received Heat Transfer 1023 | . 126 . . . 180 198 54 210 90 165 Effects 1 | . . . . . . . . . . 1 Interference 1 | . . . . . . . . . . 1 Siege Activations . | . . . . . . . . . . . Robots Corrupted . | . . . . . . . . . . . Combat Hostiles . | . . . . . . . . . . . Parts Fried 1 | . . . . . . . . 1 . . Impact Corruptions . | . . . . . . . . . . . Robots Melted 1 | . . . . . . . . . . 1 Combat Hostiles 1 | . . . . . . . . . . 1 Parts Melted . | . . . . . . . . . . . Heat Transferred 796 | . 296 . . . . . . . . 500 Parts Sabotaged . | . . . . . . . . . . . Parts Stolen . | . . . . . . . . . . . Parts Stripped . | . . . . . . . . . . . Power Chain Reactions . | . . . . . . . . . . . Missiles Intercepted . | . . . . . . . . . . . Alert | -11 -10 -10 -10 -9 -8 -8 -8 -8 -8 -7 ------- Run | Scr Mat Min Exi Min Mat Gar Mat Sto Gar Fac Peak Influence 2106 | . 657 197 . . 862 916 799 871 1049 2106 Initial 550 | . . 197 . . . 460 446 259 473 550 Average 544 | . 375 197 . . 309 723 630 524 858 1018 Maximum Alert Level 5 | . 2 . . . 3 3 3 3 3 5 Low Security (%) 25 | 100 18 100 . 100 54 . . 10 . . Level 1 12 | . 38 . . . 13 . . 19 . . Level 2 29 | . 42 . . . 10 30 73 35 19 39 Level 3 26 | . . . . . 21 69 26 34 80 27 Level 4 2 | . . . . . . . . . . 14 Level 5 3 | . . . . . . . . . . 18 High Security . | . . . . . . . . . . . Max Security . | . . . . . . . . . . . Squads Dispatched 39 | . 8 . . . 7 . 2 5 . 17 Investigation 16 | . 6 . . . 5 . 1 2 . 2 Extermination 1 | . . . . . . . . . . 1 Reinforcement 13 | . 2 . . . 2 . 1 1 . 7 Assault 4 | . . . . . . . . . . 4 Garrison 5 | . . . . . . . . 2 . 3 Intercept . | . . . . . . . . . . . Construction Impeded 1 | . . . . . . . . . . 1 Haulers Reinforced 1 | . . . . . . . . . . 1 Active Scanning Responses . | . . . . . . . . . . . Cargo Convoy Interrupts 1 | . . . . . . . . . . 1 Stealth | -11 -10 -10 -10 -9 -8 -8 -8 -8 -8 -7 --------- Run | Scr Mat Min Exi Min Mat Gar Mat Sto Gar Fac Distress Signals 8 | . 1 . . . 3 . . 2 . 2 Communications Jammed . | . . . . . . . . . . . Distress Signals . | . . . . . . . . . . . Times Spotted 213 | . 30 . . . 44 14 8 34 19 64 Peak Tracking Total 11 | . 7 . . . 6 3 2 5 4 11 Tactical Retreats 7 | . 1 . . . 3 . . 1 1 1 Traps | -11 -10 -10 -10 -9 -8 -8 -8 -8 -8 -7 ------- Run | Scr Mat Min Exi Min Mat Gar Mat Sto Gar Fac Traps Triggered 6 | . 1 . . . 2 . . 1 . 2 Indirectly . | . . . . . . . . . . . Trap Hack Attempts . | . . . . . . . . . . . Triggered . | . . . . . . . . . . . Disarmed . | . . . . . . . . . . . Reprogrammed . | . . . . . . . . . . . Reused 1 | . . . . . 1 . . . . . Traps Reconfigurated 15 | . . . . . 12 . . 3 . . Traps Extracted . | . . . . . . . . . . . Installed . | . . . . . . . . . . . Triggered 1 | . . . . . 1 . . . . . Machines | -11 -10 -10 -10 -9 -8 -8 -8 -8 -8 -7 ---------- Run | Scr Mat Min Exi Min Mat Gar Mat Sto Gar Fac Machines Disabled 28 | . 1 . . . 4 1 2 4 . 16 Max in Single Turn 10 | . . . . . 1 1 . 1 . 10 Garrison Relay 1 | . . . . . . 1 . . . . Machines Sabotaged . | . . . . . . . . . . . Garrisons Compromised . | . . . . . . . . . . . Overloaded Fab Kills . | . . . . . . . . . . . Hacking | -11 -10 -10 -10 -9 -8 -8 -8 -8 -8 -7 --------- Run | Scr Mat Min Exi Min Mat Gar Mat Sto Gar Fac Machines Accessed 43 | . 6 . 2 . 15 . 2 12 . 6 Terminals 26 | . 4 . . . 10 . 1 9 . 2 Fabricators 2 | . . . . . . . . . . 2 Repair Stations 4 | . 1 . . . 2 . . 1 . . Recycling Units 5 | . 1 . . . 1 . . 1 . 2 Scanalyzers 2 | . . . . . 1 . 1 . . . Garrison Access 2 | . . . . . 1 . . 1 . . Total Hacks 153 | . 17 . 2 . 71 . 10 35 . 18 Successful 68 | . 7 . 2 . 32 . 5 16 . 6 Failed 84 | . 9 . . . 39 . 5 19 . 12 Catastrophic 18 | . 1 . . . 7 . . 4 . 6 Database Lockouts 1 | . 1 . . . . . . . . . Manual 73 | . 8 . 1 . 37 . 1 16 . 10 Terminals 104 | . 12 . . . 50 . 7 29 . 6 Fabricators 5 | . . . . . . . . . . 5 Repair Stations 13 | . 2 . . . 9 . . 2 . . Recycling Units 14 | . 3 . . . 2 . . 2 . 7 Scanalyzers 10 | . . . . . 7 . 3 . . . Garrison Access 5 | . . . . . 3 . . 2 . . Terminal Hacks 35 | . 2 . 2 . 17 . 3 10 . 1 Record 1 | . . . 1 . . . . . . . Robot Schematic 1 | . . . . . 1 . . . . . Robot Analysis 8 | . 1 . . . 5 . 2 . . . Prototype ID Bank 2 | . . . . . 2 . . . . . Open Door 3 | . . . . . . . . 3 . . Branch Access Points 1 | . . . . . . . 1 . . . Unreport Threat 7 | . . . . . 3 . . 3 . 1 Locate Traps 4 | . 1 . . . 1 . . 2 . . Zone Layout 7 | . . . . . 5 . . 2 . . EX-Prototype ID Bank 1 | . . . 1 . . . . . . . Fabricator Hacks . | . . . . . . . . . . . Repair Station Hacks 9 | . 2 . . . 5 . . 2 . . Scan Component 5 | . 1 . . . 3 . . 1 . . Repair 4 | . 1 . . . 2 . . 1 . . Recycling Unit Hacks 4 | . 1 . . . . . . 1 . 2 Retrieve Components 4 | . 1 . . . . . . 1 . 2 Scanalyzer 9 | . . . . . 7 . 2 . . . Insert Component 4 | . . . . . 3 . 1 . . . Analyze 5 | . . . . . 4 . 1 . . . Garrison Access Hacks 2 | . . . . . 1 . . 1 . . Unlock Access 2 | . . . . . 1 . . 1 . . Unauthorized Hacks 9 | . 2 . . . 2 . . 2 . 3 Terminals 4 | . 1 . . . 2 . . 1 . . Botnet 4 | . 1 . . . 2 . . 1 . . Fabricators 2 | . . . . . . . . . . 2 Liberate 1 | . . . . . . . . . . 1 Fabnet 1 | . . . . . . . . . . 1 Repair Stations . | . . . . . . . . . . . Recycling Units 2 | . 1 . . . . . . . . 1 Mask 1 | . . . . . . . . . . 1 Tunnel 1 | . 1 . . . . . . . . . Scanalyzers . | . . . . . . . . . . . Garrison Access 1 | . . . . . . . . 1 . . Reprogram 1 | . . . . . . . . 1 . . Data Cores Recovered . | . . . . . . . . . . . Used . | . . . . . . . . . . . Hacking Detections 33 | . 4 . . . 13 . 1 9 . 6 Full Trace Events 11 | . 3 . . . 5 . 1 1 . 1 Feedback Events . | . . . . . . . . . . . Feedback Blocked . | . . . . . . . . . . . Robot Schematics Acquired 1 | . . . . . 1 . . . . . Robots Built . | . . . . . . . . . . . Authchips . | . . . . . . . . . . . Time . | . . . . . . . . . . . Total Robot Build Rating . | . . . . . . . . . . . Part Schematics Acquired 4 | . . . . . 3 . 1 . . . Parts Built . | . . . . . . . . . . . Authchips . | . . . . . . . . . . . Time . | . . . . . . . . . . . Total Part Build Rating . | . . . . . . . . . . . Parts Repaired 4 | . 1 . . . 2 . . 1 . . Time 122 | . 32 . . . 64 . . 26 . . Parts Recycled . | . . . . . . . . . . . Recycled Matter . | . . . . . . . . . . . Retrieved Matter . | . . . . . . . . . . . Retrieved Components 28 | . . . . . . . . 10 . 18 Parts Scanalyzed 4 | . . . . . 3 . 1 . . . Part Schematics Acquired 4 | . . . . . 3 . 1 . . . Parts Damaged 1 | . . . . . 1 . . . . . Bothacking | -11 -10 -10 -10 -9 -8 -8 -8 -8 -8 -7 ------------ Run | Scr Mat Min Exi Min Mat Gar Mat Sto Gar Fac Used RIF Installer 2 | . . . . . . 1 . . 1 . Alert ID Control 1 | . . . . . . . . . 1 . Robots Hacked . | . . . . . . . . . . . Non-combat . | . . . . . . . . . . . Combat . | . . . . . . . . . . . Robot Hacks Applied . | . . . . . . . . . . . Relay Couplers Released 5 | . . . . . . 5 . . . . Machine Destruction 5 | . . . . . . 5 . . . . Fabnet Peak Effective % . | . . . . . . . . . . . Robots Rewired . | . . . . . . . . . . . Allies Hacked . | . . . . . . . . . . . Hacks Repelled . | . . . . . . . . . . . Allies | -11 -10 -10 -10 -9 -8 -8 -8 -8 -8 -7 -------- Run | Scr Mat Min Exi Min Mat Gar Mat Sto Gar Fac Total Allies 6 | . 1 . . . . . . 2 . 3 Largest Group 4 | . 1 1 1 1 1 1 1 1 3 4 Highest-Rated Group 135 | . 60 60 60 60 76 82 83 84 110 135 Highest-Rated Ally 90 | . 60 60 60 60 76 82 83 84 78 90 Total Orders . | . . . . . . . . . . . Ally Attacks 289 | . 22 . . . 62 16 10 32 38 109 Total Damage 10928 | . 859 . . . 2400 708 405 1555 704 4297 Kills 119 | . 16 . . . 24 9 5 17 6 42 Allies Corrupted . | . . . . . . . . . . . Allies Melted . | . . . . . . . . . . . Intel | -11 -10 -10 -10 -9 -8 -8 -8 -8 -8 -7 ------- Run | Scr Mat Min Exi Min Mat Gar Mat Sto Gar Fac Robot Analysis Total 8 | . 1 . . . 5 . 2 . . . Derelict Logs Recovered . | . . . . . . . . . . . Drone Launches . | . . . . . . . . . . . Drone Recoveries . | . . . . . . . . . . . Exploration | -11 -10 -10 -10 -9 -8 -8 -8 -8 -8 -7 ------------- Run | Scr Mat Min Exi Min Mat Gar Mat Sto Gar Fac Turns Passed 7388 | 3 940 143 435 289 1911 476 436 1132 345 1278 Spaces Moved 3515 | 2 474 84 270 176 738 239 203 526 191 612 Core 1 | . . . . . . . 1 . . . Treads 3281 | . 273 84 270 176 708 239 202 526 191 612 Legs 203 | 2 201 . . . . . . . . . Wheels 30 | . . . . . 30 . . . . . Hover . | . . . . . . . . . . . Flight . | . . . . . . . . . . . Fastest Speed 120 | 120 120 160 160 160 130 160 160 160 160 152 Average Speed 157 | 120 143 160 160 160 158 160 162 160 160 159 Slowest Speed 650 | 120 190 160 160 160 160 160 650 160 160 240 Overloaded Moves . | . . . . . . . . . . . Propulsion Burnouts . | . . . . . . . . . . . Robots Hopped . | . . . . . . . . . . . Cave-ins Triggered 1 | . . . . . 1 . . . . . Exploration Rate (%) 44 | 2 84 20 69 33 62 37 20 88 48 22 Regions Visited 10 Branch Regions 4 Pre-discovered Areas 3 | . 1 . 1 1 . . . . . . Known Exits Taken 3 | . . . . . 1 . 1 1 . . Unknown Exits Taken 5 | 1 1 1 1 1 . . . . . . Scrap Searched 1 | . . 1 . . . . . . . . Spaces Dug 27 | . . . . . 10 . 1 16 . . Terrain Destroyed 147 | . . . . . 38 . 1 16 11 81 Melee 5 | . . . . . 3 . 1 1 . . Projectile . | . . . . . . . . . . . AOE 142 | . . . . . 35 . . 15 11 81 Terrain Rammed . | . . . . . . . . . . . Walls Destroyed . | . . . . . . . . . . . Machines Disabled . | . . . . . . . . . . . Actions | -11 -10 -10 -10 -9 -8 -8 -8 -8 -8 -7 --------- Run | Scr Mat Min Exi Min Mat Gar Mat Sto Gar Fac Total 4960 | 2 679 93 273 183 1346 306 279 746 210 843 Wait 968 | . 127 7 1 7 480 38 45 141 . 122 Move 3505 | 1 473 83 269 175 737 238 202 525 190 612 Hop . | . . . . . . . . . . . Pick Up 52 | . 21 1 1 . 11 4 1 3 . 10 Fast Attach 35 | . 4 . . . 7 2 5 7 . 10 Attach 13 | . 1 . . . 5 1 . . . 6 Detach 10 | . 1 . . . . . . 1 . 8 Swap 63 | 1 3 1 1 . 21 4 4 11 4 13 Drop 72 | . 16 1 1 . 16 6 8 14 . 10 Fire 204 | . 29 . . . 52 13 10 37 16 47 Melee 21 | . . . . . 13 . 4 3 . 1 Ram . | . . . . . . . . . . . Kick . | . . . . . . . . . . . Crush 17 | . 4 . . 1 4 . . 4 . 4 Escape Stasis . | . . . . . . . . . . . Rewire . | . . . . . . . . . . . Trap . | . . . . . . . . . . . Miscellaneous . | . . . . . . . . . . . Route ------- -11/Scrapyard -10/Materials (discovered 3 exits: [*Mat x2] / [*Min]) -10/Mines -10/Exiles -9/Mines -8/Materials (discovered 4 exits: *Fac x3 / Gar) -8/Garrison -8/Materials (discovered 3 exits: *Fac / *Sto x2) -8/Storage (discovered 2 exits: *Fac / Gar) -8/Garrison (discovered 2 exits: *Fac x2) -7/Factory History --------- Turn | Location | Event 1 | -11/Scrapyard | Discovered new exit (range 1) 4 | -11/Scrapyard | Entered Materials 216 | -10/Materials | Central database locked down 302 | -10/Materials | Build established: Mutant 376 | -10/Materials | Repaired Imp. Ion Engine 389 | -10/Materials | Discovered new exit (range 12) 555 | -10/Materials | Discovered new exit (range 11) 863 | -10/Materials | Discovered new exit (range 12) 944 | -10/Materials | Entered Mines 944 | -10/Mines | Accompanied by 1 ally 1003 | -10/Mines | Received a Rocket Launcher from a helpful Derelict 1077 | -10/Mines | Deemed a non-threat by the Exiles lab entrance 1079 | -10/Mines | Discovered new exit (range 5) 1087 | -10/Mines | Entered Exiles 1087 | -10/Exiles | Accompanied by 1 ally 1127 | -10/Exiles | Met 8R-AWN 1153 | -10/Exiles | Met EX-HEX 1214 | -10/Exiles | Met EX-DEC 1244 | -10/Exiles | Learned location of Zion (-7) 1270 | -10/Exiles | Met EX-BIN 1292 | -10/Exiles | Aligned with FarCom system 1294 | -10/Exiles | Given EX-Vault access code 1331 | -10/Exiles | Opened EX-Vault 1346 | -10/Exiles | Found Trap Reconfigurator 1382 | -10/Exiles | Warned to stay clear of 0b10 Research branches 1502 | -10/Exiles | Discovered new exit (range 14) 1522 | -10/Exiles | Left Exiles lab with Trap Reconfigurator 1522 | -10/Exiles | Entered Mines 1522 | -9/Mines | Accompanied by 1 ally 1604 | -9/Mines | Discovered new exit (range 8) 1607 | -9/Mines | Learned location of Storage (-8) 1811 | -9/Mines | Entered Materials 1811 | -8/Materials | Accompanied by 1 ally 1811 | -8/Materials | Evolved 4 slots: Propulsion x1, Utility x2, Weapon x1 2149 | -8/Materials | Build established: Tank 2335 | -8/Materials | Discovered new exit (range 13) 2433 | -8/Materials | Crushed by falling debris 2752 | -8/Materials | Repaired Lgt. Treads 3248 | -8/Materials | Discovered new exit (range 10) 3397 | -8/Materials | Repaired Hrd. Medium Armor Plating 3403 | -8/Materials | Discovered new exit (range 16) 3513 | -8/Materials | Build established: Mutant 3704 | -8/Materials | Identified exit to Garrison 3722 | -8/Materials | Entered Garrison 3722 | -8/Garrison | Accompanied by 1 ally 3760 | -8/Garrison | Triggered checkpoint 3816 | -8/Garrison | Triggered checkpoint 3950 | -8/Garrison | Discovered new exit (range 15) 3991 | -8/Garrison | Installed Relay Interface Framework 4066 | -8/Garrison | Triggered checkpoint 4100 | -8/Garrison | Garrison Relay disabled 4198 | -8/Garrison | Entered Materials 4198 | -8/Materials | Accompanied by 1 ally 4402 | -8/Materials | Build established: Bothacker-Skirmisher 4436 | -8/Materials | Identified exit to Storage 4580 | -8/Materials | Discovered new exit (range 10) 4634 | -8/Materials | Entered Storage 4634 | -8/Storage | Accompanied by 1 ally 4686 | -8/Storage | Repaired Lgt. Treads 5602 | -8/Storage | Discovered new exit (range 15) 5666 | -8/Storage | Garrison activated, responded to threat 5719 | -8/Storage | Identified exit to Garrison 5766 | -8/Storage | Entered Garrison 5766 | -8/Garrison | Accompanied by 3 allies 5811 | -8/Garrison | Triggered checkpoint 5825 | -8/Garrison | Core integrity fell below 50% 5874 | -8/Garrison | Destroyed 9 combat bots 5919 | -8/Garrison | Discovered new exit (range 15) 6084 | -8/Garrison | Discovered new exit (range 8) 6104 | -8/Garrison | Expanded RIF knowledge: Alert ID Control 6111 | -8/Garrison | Entered Factory 6111 | -7/Factory | Accompanied by 2 allies 6111 | -7/Factory | Evolved 2 slots: Propulsion x1, Utility x1 6867 | -7/Factory | Garrison activated, responded to threat 6891 | -7/Factory | Build established: Bothacker-Tank 6911 | -7/Factory | First assault squad dispatched 6995 | -7/Factory | Destroyed 7 combat bots 7148 | -7/Factory | Cargo convoy interrupted 7158 | -7/Factory | System corruption reached 10% 7190 | -7/Factory | Lost 3 parts (1n1u1w) 7316 | -7/Factory | Core integrity fell below 50% 7340 | -7/Factory | Core integrity fell below 20% 7389 | -7/Factory | Core destroyed Last Messages --------------- 07353_ Acquired 12 matter. 07354_ U-05 Engineer builds a Wall. 07355_ K-01 Serf collects debris. 07355_ U-05 Engineer builds a Door. 07355_ K-01 Serf collects debris. 07360_ IXWR 1VL4OU8L7=CIO 07366_ R-06 Scavenger collects Com. Wheel. 07368_ K-01 Serf collects debris. 07381_ System corrupted: Matter fused (-7). 07382_ K-01 Serf collects debris. 07384_ G-47 Trooper knocked back. 07385_ K-01 Serf collects debris. 07387_ G-47 Trooper Aluminum Leg blasted off. 07387_ G-47 Trooper knocked back. 07388_ Destroyed Mni. Assault Cannon. 07389_ G-47 Trooper suffers critical hit (Burn). 07389_ G-47 Trooper destroyed. Map ----- +----------------------------------------------------+ | ????# *! # #???# " " " "???????? | | ????# *! # """" ##### " " " " ??????? | | ????# # """" ! + " " " " ??????? | | ????############## """" *######## " " " " ??????? | | ?????????????????# """" #??????# " " " " ??????? | | ?????????????????# """"%%#??????# " " " " ??????? | | ?????????????????# """" #??????# " " " " ??????? | | ?????????????????# """" ######## " " " " ??????? | | ?????????????????# / " " " " ??????? | | ?????????????????# """" #### ????? | | ?????????????????# """" #??# #??? | | ?????????????????# """" #??##############??? | | ?????????????????# """" #????##############? | | ?????????????????# """" k #????# """"""""""" | | ?????????????????# """" #????# """"T"""" | | ?????????????????# """" #????# | | ????????????###### #????? ! % %%? | | ????????????+ #??????? """""""??? | | ????????????# #?????????*= [????? | | ????????????# #??????????#/#?????? | | ????????????# ^ #??????????# #?????? | | ???????????## #??????????#[#?????? | | ????? gggk= ############%#?????? | | ????? % %l@ =! k =%%%#?????? | | ????? g=l =[ !=*%=#?????? | | ?????? i g @ %%%%%%#?????? | | ?????? k ### !%%%%!%#?????? | | ??????? #### ######+###?# "!=%%%%%#?????? | | ???????????# ?????? #??# "!=[!%%=#?????? | | ???????????# ??????? #??# !!! %! #?????? | | ???????????? ???????? #??# [%*%"% #?????? | | ??????????????????? #??# !%%% #?????? | | ????????????????? #??# = %#?????? | | ??????????????? #??# %% #?????? | | ?????????????? #??# % #?????? | | ???????????????################## !/ #?????? | | ?????????????????????? %= #?????? | | ????????????????????? ==! #+#####?? | | ?????????????????????? !! % %# ? | | ?????????????????????? | =* # """ | | ?????????????????????? =[ * # ! """ | | ??????????????????????############## % # """ | | ??????????????????????????########## %# | | ?????????????????????????? """ """ # # """ | | ????????????????????????"" """ """!# # """ | | ?????????????????????# """ """ """ # #% """ [ | | ?????????????????????# + ] / % | | ?????????????????????# # !!#"####### | | ?????????????????????# ] "T" #/= !%#! """" [ | | ?????????????????????###############=*![ #!"" "" | +----------------------------------------------------+ Best States ------------- Heat Dissipation 41 Energy Generation 14 Energy Capacity 280 Matter Stores 300 Matter Capacity 300 Sight Range 16 Terrain Scan Density 10 Armor Coverage 600 Resistance: TH 25 Propulsion Shielding 33 Weapon Shielding 33 Evasion (%) 55 Targeting Accuracy 8 Recoil Reduction 4 Matter Filtering 30 Offensive Hacking 10 Defensive Hacking 20 Item Schematics ----------------- Arm. Wheel | -8/Materials | Scanalyzed Hrd. Medium Armor Plating | -8/Materials | Scanalyzed Datajack | -8/Materials | Scanalyzed Lgt. Treads | -8/Materials | Scanalyzed Robot Schematics ------------------ M-28 Smith | -8/Materials | Hacked Fabricated ------------ Nothing Alien Tech Used ----------------- None Achievements -------------- None Challenges ------------ None Player 2 | -11 -10 -10 -10 -9 -8 -8 -8 -8 -8 -7 ---------- Run | Scr Mat Min Exi Min Mat Gar Mat Sto Gar Fac Slots Evolved 6 | . . . . 4 . . . . 2 . Power . | . . . . . . . . . . . Propulsion 3 | . . . . 2 . . . . 1 . Utility . | . . . . . . . . . . . Weapon 3 | . . . . 2 . . . . 1 . Parts Attached 82 | . 14 1 . . 22 7 4 17 . 17 Parts Lost 13 | . . . . . 1 1 . . . 11 Damage Taken 3834 | . 133 . . . 697 164 83 346 45 2366 Core 719 | . 24 . . . 45 . . 30 32 588 Player 2/Cogmind (%) 64 | . 45 . . . 38 . . 44 45 81 Absorbed by Shields . | . . . . . . . . . . . Damage Inflicted 10066 | . 859 . . . 2400 708 405 1538 407 3749 Player 2/Cogmind (%) 48 | . 60 . . . 57 59 46 49 26 44 Combat Hostiles Destroyed 88 | . 12 . . . 18 9 3 12 4 30 Player 2/Cogmind (%) 48 | . 50 . . . 51 64 42 40 23 53 Game ------ Seed CoilDecoderFrame Manual? 0 Play Time 00:47:12 Cumulative 1012.7 hours Start 2022.01.01 @ 21:50:24 End 2022.01.01 @ 22:37:08 Sessions 1 Manual Loads 0 Difficulty Rogue Special Mode AFD2020/Player2 Game No. 705 Rogue 701 Adventurer 4 Explorer 0 Win Type - Total 108 Types 82/9/7/4/2/0/0/2/2 Lore% 95 Gallery% 97 Achievement% 96 Wizard Run 0 Options --------- ASCII 0 Keyboard 1 Movement Vi Keybinds 0 Fullscreen 0 Font 16/Terminus Map View 76x50 Tactical HUD 1 Map Filters NONE Filters NONE Steam 1 RUN: be84bf5c-bfb7-4b45-955b-fc01328486db